bitfinex-derivatives/quotes_SOLF0:USTF0_20250929
["timestamp","ask_amount","ask_price","bid_price","bid_amount"]
[1759135746992,122.4,209.2,209.14,4.01385511]
[1759135747200,4.1,209.2,209.15,4.01385511]
[1759135747399,4.1,209.2,209.13,5.32435401]
[1759135747400,118.28,209.2,209.17,7.39]
[1759135747699,122.38,209.22,209.17,11.40385511]
[1759135747900,122.4,209.22,209.17,11.40385511]
[1759135748398,4.1,209.26,209.18,11.40385511]
[1759135748798,4.1,209.26,209.19,4.01385511]
[1759135749791,4.2998,209.25,209.19,4.01385511]
[1759135750000,4.1,209.24,209.2,4.01385511]
[1759135750200,70.9802,209.27,209.17,11.40385511]
[1759135750398,118.38,209.26,209.17,7.39]
[1759135750696,4.1,209.24,209.16,4.01385511]
[1759135750898,4.1,209.22,209.14,4.01385511]
[1759135751096,4.1,209.22,209.13,4.01385511]
[1759135751298,4.3011,209.19,209.13,4.01385511]
[1759135751999,8.4014,209.18,209.13,11.40385511]
[1759135752402,4.3008,209.2,209.14,7.39]
[1759135752704,4.1,209.22,209.14,7.39]
[1759135753002,108.86,209.22,209.14,11.40385511]
[1759135753198,108.86,209.22,209.14,7.39]
[1759135753703,108.86,209.22,209.15,7.39]
[1759135753704,4.3011,209.19,209.15,7.39]
[1759135754806,4.3011,209.19,209.13,11.40385511]
[1759135755508,4.3014,209.17,209.14,7.39]
[1759135755700,8.3714,209.17,209.13,4.01385511]
[1759135755906,69.08615474,209.23,209.08,14.53791777]
[1759135755907,4.07,209.19,209.11,4.01385511]
[1759135756199,4.07,209.19,209.1,4.01385511]
[1759135756596,122.39,209.19,209.1,4.01385511]
[1759135757608,4.3019,209.15,209.11,7.39]
[1759135758405,4.3019,209.15,209.1,7.39]
[1759135758609,4.3019,209.15,209.09,4.01385511]
[1759135758801,4.3019,209.15,209.09,11.40385511]
[1759135759199,4.3021,209.14,209.09,4.01385511]
[1759135759407,4.3021,209.14,209.1,7.39]
[1759135759606,4.3021,209.14,209.09,4.01385511]
[1759135760202,4.3021,209.14,209.1,7.39]
[1759135760498,4.3016,209.16,209.1,7.39]
[1759135762309,122.23,209.19,209.1,7.39]
[1759135763310,4.3017,209.16,209.1,7.39]
[1759135764712,4.3019,209.15,209.09,4.01385511]
[1759135765014,4.3019,209.15,209.09,7.48]
[1759135765810,4.3021,209.14,209.09,7.48]
[1759135766814,4.08,209.12,209.08,7.48]
[1759135767109,4.08,209.16,209.08,7.48]
[1759135767307,122.26,209.15,209.08,7.48]
[1759135767506,4.08,209.15,209.08,7.48]
[1759135767806,122.26,209.15,209.08,7.48]
[1759135768203,122.26,209.14,209.05,4.01385511]
[1759135768405,66.9185,209.15,209.04,7.48]
[1759135768609,187.37465474,209.14,209.04,7.48]
[1759135768907,4.3031,209.09,209.03,11.49385511]
[1759135769212,8.3827,209.11,209.03,11.49385511]
[1759135769408,8.3827,209.11,209.04,4.01385511]
[1759135771309,8.3827,209.11,209.03,11.49385511]
[1759135771914,4.303,209.1,209.04,7.48]
[1759135772507,4.3031,209.09,209.03,11.49385511]
[1759135773109,4.3031,209.09,209.03,4.01385511]
[1759135773315,4.3031,209.09,209.03,11.49385511]
[1759135773706,4.3033,209.08,209.04,7.48]
[1759135774318,4.08,209.08,209.02,4.01385511]
[1759135774516,4.08,209.08,209.01,4.01385511]
[1759135774819,4.3033,209.08,209.02,11.49385511]
[1759135775519,8.3833,209.08,209.04,7.48]
[1759135775709,4.3029,209.1,209.04,7.48]
[1759135775914,4.08,209.13,209.05,7.48]
[1759135776116,4.08,209.13,209.05,11.49385511]
[1759135776925,4.3025,209.12,209.05,11.49385511]
[1759135777126,4.08,209.13,209.05,7.48]
[1759135778617,4.3029,209.1,209.05,7.48]
[1759135779124,4.08,209.13,209.06,7.48]
[1759135779314,4.3025,209.12,209.06,7.48]
[1759135780120,4.302,209.14,209.06,11.49385511]
[1759135780420,4.302,209.14,209.07,4.01385511]
[1759135780721,1.28853592,209.15,209.07,4.01385511]
[1759135781121,1.28853592,209.15,209.08,7.48]
[1759135781319,1.28853592,209.15,209.08,11.49385511]
[1759135781619,5.36853592,209.16,209.08,11.48748124]
[1759135782417,5.36853592,209.16,209.08,7.48]
[1759135782829,4.3019,209.15,209.09,4.00748124]
[1759135783621,118.1,209.19,209.11,4.00748124]
[1759135783827,66.8809,209.27,209.14,7.48]
[1759135783828,1.28853592,209.22,209.14,7.48]
[1759135784018,1.28853592,209.22,209.14,11.48748124]
[1759135784417,4.08,209.24,209.14,8.30948124]
[1759135784727,4.08,209.24,209.16,7.48]
[1759135785527,4.3005,209.22,209.16,7.48]
[1759135786921,4.08,209.21,209.14,4.00748124]
[1759135787125,4.08,209.21,209.13,11.48748124]
[1759135787923,4.08,209.21,209.14,4.00748124]
[1759135789025,4.3011,209.19,209.15,7.48]
[1759135789219,8.3811,209.19,209.15,7.48]
[1759135790629,1.28853592,209.19,209.13,7.48]
[1759135790828,5.36853592,209.19,209.13,7.48]
[1759135791728,4.08,209.18,209.1,4.00748124]
[1759135792024,4.08,209.18,209.09,11.48748124]
[1759135792025,1.28853592,209.16,209.09,11.48748124]
[1759135792232,4.3022,209.14,209.1,7.48]
[1759135792429,4.3022,209.14,209.09,4.00748124]
[1759135792628,4.3022,209.14,209.1,7.48]
[1759135792929,4.3016,209.16,209.11,4.00748124]
[1759135793825,4.3016,209.16,209.12,7.48]
[1759135794019,4.3016,209.16,209.11,4.00748124]
[1759135794523,4.07,209.22,209.16,7.88]
[1759135794727,118.16,209.24,209.16,7.88]
[1759135794927,123.51853592,209.25,209.16,7.88]
[1759135795128,119.44853592,209.25,209.16,7.88]
[1759135795324,4.07,209.24,209.16,11.88748124]
[1759135795831,4.07,209.24,209.16,7.88]
[1759135796330,4.3007,209.21,209.16,7.88]
[1759135796529,4.07,209.21,209.16,7.88]
[1759135796729,4.07,209.23,209.16,7.88]
[1759135797432,4.3011,209.19,209.16,7.88]
[1759135799039,4.3007,209.21,209.15,4.00748124]
[1759135799331,4.3007,209.21,209.15,11.88748124]
[1759135799832,4.3007,209.21,209.16,4.00748124]
[1759135800331,4.3007,209.21,209.17,7.88]
[1759135800528,4.3002,209.23,209.17,11.88748124]
[1759135800727,4.07,209.27,209.18,11.88748124]
[1759135800930,4.07,209.27,209.19,4.00748124]
[1759135801128,4.2998,209.25,209.19,4.00748124]
[1759135801523,4.2998,209.25,209.2,7.88]
[1759135801729,4.2998,209.25,209.19,4.00748124]
[1759135802629,4.2998,209.25,209.19,5.29601716]
[1759135802837,4.07,209.27,209.2,7.88]
[1759135803128,349.36853592,209.28,209.21,7.88]
[1759135805628,4.07,209.27,209.21,7.88]
[1759135805834,4.07,209.24,209.17,4.00748124]
[1759135806037,4.07,209.22,209.15,4.00748124]
[1759135806241,122.11,209.22,209.14,4.00748124]
[1759135806536,1.28853592,209.21,209.14,4.00748124]
[1759135806740,4.07,209.2,209.12,4.00748124]
[1759135808533,4.3015,209.17,209.12,4.00748124]
[1759135808733,4.3015,209.17,209.13,7.88]
[1759135809135,4.3015,209.17,209.12,4.00748124]
[1759135809347,4.3015,209.17,209.13,7.88]
[1759135810841,4.301,209.19,209.12,11.88748124]
[1759135811142,4.07,209.2,209.12,11.88748124]
[1759135812542,4.3013,209.18,209.12,11.88748124]
[1759135813239,4.3015,209.17,209.12,4.00748124]
[1759135813445,8.3715,209.17,209.13,8.02]
[1759135813633,4.07,209.17,209.13,8.02]
[1759135813840,8.3717,209.16,209.12,12.02748124]
[1759135814342,1.28853592,209.18,209.13,8.02]
[1759135814744,1.28853592,209.18,209.12,4.00748124]
[1759135815240,4.3012,209.18,209.12,4.00748124]
[1759135815743,4.3012,209.18,209.13,8.02]
[1759135815945,4.3012,209.18,209.12,4.00748124]
[1759135816448,4.3012,209.18,209.14,8.02]
[1759135816650,4.3012,209.18,209.13,4.00748124]
[1759135816950,4.3012,209.18,209.14,8.02]
[1759135817145,4.3008,209.2,209.13,4.00748124]
[1759135817350,4.3008,209.2,209.14,8.02]
[1759135817648,4.3008,209.2,209.14,12.02748124]
[1759135819041,4.3011,209.19,209.14,12.02748124]
[1759135819249,4.07,209.18,209.14,12.02748124]
[1759135819547,5.35853592,209.19,209.15,8.02]
[1759135820151,4.07,209.27,209.15,8.02]
[1759135820448,1.28853592,209.25,209.19,8.02]
[1759135821244,5.58823592,209.26,209.19,8.02]
[1759135821751,4.2998,209.25,209.19,8.02]
[1759135823344,1.28853592,209.26,209.19,8.02]
[1759135823345,4.07,209.23,209.19,8.02]
[1759135823542,121.81,209.25,209.18,4.00748124]
[1759135823850,4.04,209.22,209.18,4.00748124]
[1759135824042,4.3002,209.23,209.18,4.00748124]
[1759135824248,4.04,209.22,209.18,4.00748124]
[1759135824958,4.3005,209.22,209.17,11.80748124]
[1759135825259,4.3005,209.22,209.17,7.8]
[1759135825458,4.04,209.21,209.17,7.8]
[1759135825661,4.04,209.21,209.17,4.00748124]
[1759135825960,4.04,209.21,209.18,7.8]
[1759135826257,4.3005,209.22,209.19,7.8]
[1759135827058,8.3405,209.22,209.19,7.8]
[1759135827252,8.3406,209.21,209.18,4.00748124]
[1759135827458,4.04,209.2,209.18,4.00748124]
[1759135828152,4.3006,209.21,209.17,11.80748124]
[1759135828851,125.9802,209.23,209.18,7.8]
[1759135829057,4.04,209.25,209.19,4.00748124]
[1759135829360,117.62,209.23,209.19,11.80748124]
[1759135829558,4.04,209.22,209.19,11.80748124]
[1759135830455,4.2999,209.25,209.19,4.00748124]
[1759135830654,121.9599,209.25,209.19,4.00748124]
[1759135833065,4.3001,209.24,209.19,4.00748124]
[1759135833357,4.04,209.23,209.19,11.80748124]
[1759135834159,121.9598,209.25,209.19,11.80748124]
[1759135834556,121.9598,209.25,209.2,4.00748124]
[1759135834749,4.04,209.24,209.2,4.00748124]
[1759135834949,121.9598,209.25,209.2,4.00748124]
[1759135835151,4.04,209.24,209.2,11.80748124]
[1759135835648,4.2994,209.27,209.21,7.8]
[1759135835853,4.2994,209.27,209.21,11.80748124]
[1759135836050,4.2994,209.27,209.22,4.00748124]
[1759135836652,4.2994,209.27,209.22,7.8]
[1759135836858,4.04,209.27,209.19,4.00748124]
[1759135837058,4.04,209.25,209.19,4.00748124]
[1759135837257,117.54,209.26,209.19,4.00748124]
[1759135837258,8.3405,209.22,209.19,4.00748124]
[1759135837557,4.3005,209.22,209.19,11.80748124]
[1759135837959,8.3405,209.22,209.19,4.00748124]
[1759135838556,4.3005,209.22,209.19,11.80748124]
[1759135839058,125.88,209.24,209.2,11.80748124]
[1759135839257,121.84,209.24,209.2,4.00748124]
[1759135839456,117.54,209.24,209.22,7.8]
[1759135839661,4.04,209.31,209.23,7.8]
[1759135839958,117.48,209.3,209.23,11.80748124]
[1759135840364,4.04,209.29,209.21,4.00748124]
[1759135840668,117.48,209.28,209.22,4.00748124]
[1759135841169,121.52,209.28,209.23,11.80748124]
[1759135841366,121.52,209.28,209.24,7.8]
[1759135841661,4.2994,209.27,209.24,7.8]
[1759135842065,121.52,209.28,209.24,7.8]
[1759135842764,125.8193,209.28,209.24,7.8]
[1759135843658,125.8193,209.28,209.23,4.00748124]
[1759135843864,125.8193,209.28,209.25,7.8]
[1759135844060,4.04,209.27,209.24,4.00748124]
[1759135844254,4.2993,209.28,209.24,11.80748124]
[1759135844455,4.2993,209.28,209.24,7.8]
[1759135844658,8.3393,209.28,209.24,7.8]
[1759135845662,117.4,209.29,209.24,7.8]
[1759135845868,121.44,209.29,209.23,11.80748124]
[1759135846564,4.2997,209.26,209.23,11.80748124]
[1759135847466,4.2997,209.26,209.24,7.8]
[1759135847961,4.2997,209.26,209.23,11.80748124]
[1759135848167,8.3397,209.26,209.23,11.80748124]
[1759135848362,4.2997,209.26,209.23,11.80748124]
[1759135848559,8.3393,209.28,209.24,7.8]
[1759135848759,4.04,209.28,209.24,7.8]
[1759135849565,4.2995,209.27,209.24,7.8]
[1759135851167,121.699,209.29,209.24,7.8]
[1759135851366,121.699,209.29,209.23,11.80748124]
[1759135851756,117.4,209.29,209.24,7.8]
[1759135851961,4.04,209.28,209.24,7.8]
[1759135852265,117.24,209.28,209.24,7.8]
[1759135852562,121.28,209.28,209.23,4.00748124]
[1759135852865,117.24,209.28,209.24,7.8]
[1759135853367,121.28,209.28,209.24,7.8]
[1759135853562,121.28,209.28,209.23,4.00748124]
[1759135854061,121.28,209.28,209.24,7.8]
[1759135854570,4.04,209.28,209.24,7.8]
[1759135854864,8.3393,209.28,209.24,7.8]
[1759135855761,66.88,209.27,209.21,4.00748124]
[1759135855956,4.05,209.26,209.2,4.00748124]
[1759135856162,4.3008,209.2,209.18,4.00748124]
[1759135857764,8.3508,209.2,209.18,4.00748124]
[1759135858068,8.3511,209.19,209.17,4.00748124]
[1759135859063,117.22,209.23,209.17,4.00748124]
[1759135859364,117.18,209.23,209.19,4.00748124]
[1759135859566,117.18,209.24,209.19,11.80748124]
[1759135859871,4.05,209.24,209.19,11.80748124]
[1759135860070,4.3003,209.23,209.2,7.8]
[1759135860766,4.05,209.22,209.19,4.00748124]
[1759135860970,4.05,209.23,209.18,4.00748124]
[1759135861170,117.2,209.24,209.18,4.00748124]
[1759135861467,4.05,209.23,209.18,4.00748124]
[1759135861664,8.3505,209.22,209.18,4.00748124]
[1759135861866,8.3505,209.22,209.18,11.80748124]
[1759135863571,4.3007,209.21,209.18,11.80748124]
[1759135864569,4.3007,209.21,209.19,4.00748124]
[1759135864769,4.3002,209.23,209.19,11.80748124]
[1759135864974,4.05,209.22,209.19,11.80748124]
[1759135865167,4.05,209.22,209.19,4.00748124]
[1759135865369,8.3505,209.22,209.19,4.00748124]
[1759135865565,8.3505,209.22,209.19,11.80748124]
[1759135866670,4.3005,209.22,209.2,7.8]
[1759135866871,4.3005,209.22,209.19,4.00748124]
[1759135867174,4.3007,209.21,209.19,11.80748124]
[1759135869975,4.3009,209.2,209.18,4.00748124]
[1759135870270,4.05,209.27,209.2,7.8]
[1759135870568,4.05,209.3,209.23,7.8]
[1759135870773,4.05,209.3,209.23,11.81486524]
[1759135870963,117.16,209.29,209.23,11.81486524]
[1759135871166,4.05,209.3,209.23,11.81486524]
[1759135871374,117.16,209.29,209.23,11.81486524]
[1759135871573,4.2994,209.27,209.23,4.01486524]
[1759135871778,4.2994,209.27,209.24,7.8]
[1759135871975,117.16,209.29,209.23,4.01486524]
[1759135872167,4.05,209.28,209.23,4.01486524]
[1759135872367,4.2997,209.26,209.23,4.01486524]
[1759135872569,8.3497,209.26,209.23,4.01486524]
[1759135872764,8.3497,209.26,209.23,11.81486524]
[1759135873172,4.05,209.26,209.23,11.81486524]
[1759135873373,117.16,209.27,209.23,11.81486524]
[1759135873569,4.06,209.27,209.23,11.81486524]
[1759135873768,4.06,209.27,209.24,4.01486524]
[1759135874175,121.4593,209.28,209.24,4.01486524]
[1759135874375,4.06,209.26,209.24,4.01486524]
[1759135874570,4.06,209.26,209.23,11.81486524]
[1759135875077,117.16,209.27,209.24,7.96]
[1759135875273,66.8641,209.32,209.24,7.96]
[1759135875579,4.06,209.26,209.23,4.01486524]
[1759135876472,4.06,209.26,209.23,11.97486524]
[1759135876779,8.3594,209.27,209.23,11.97486524]
[1759135877778,4.06,209.26,209.23,11.97486524]
[1759135877977,4.06,209.25,209.23,4.01486524]
[1759135881679,8.3597,209.26,209.23,11.97486524]
[1759135883284,4.06,209.26,209.23,11.97486524]
[1759135883684,103.3192,209.28,209.23,4.01486524]
[1759135883885,4.2988,209.3,209.24,4.01486524]
[1759135884185,8.3588,209.3,209.26,7.32]
[1759135884380,8.3588,209.3,209.25,4.01486524]
[1759135884583,8.3588,209.3,209.26,7.32]
[1759135884885,117.14,209.31,209.25,4.01486524]
[1759135885087,4.06,209.3,209.25,4.01486524]
[1759135885385,117.14,209.31,209.25,4.01486524]
[1759135885980,4.06,209.3,209.25,4.01486524]
[1759135886178,121.2,209.31,209.25,4.01486524]
[1759135886582,8.3593,209.28,209.25,4.01486524]
[1759135886786,4.06,209.3,209.25,4.01486524]
[1759135887388,4.06,209.3,209.24,4.01486524]
[1759135887586,4.2995,209.27,209.24,4.01486524]
[1759135887788,4.06,209.3,209.23,4.01486524]
[1759135890495,4.2995,209.27,209.25,7.32]
[1759135890889,117.14,209.31,209.25,7.32]
[1759135891193,121.2,209.31,209.25,7.32]
[1759135892590,4.299,209.29,209.25,7.32]
[1759135892794,8.359,209.29,209.25,7.32]
[1759135893496,8.359,209.29,209.24,4.01486524]
[1759135893692,8.359,209.29,209.25,7.32]
[1759135893995,8.359,209.29,209.24,4.01486524]
[1759135894198,125.479,209.29,209.25,7.32]
[1759135894496,8.3592,209.28,209.25,7.32]
[1759135894695,4.2992,209.28,209.25,7.32]
[1759135895495,4.06,209.27,209.24,4.01486524]
[1759135897300,4.06,209.27,209.24,11.33486524]
[1759135897489,117.12,209.29,209.22,4.01486524]
[1759135897490,1.40270545,209.26,209.22,4.01486524]
[1759135897690,117.12,209.25,209.2,4.01486524]
[1759135898186,4.3005,209.22,209.2,4.01486524]
[1759135898593,4.3005,209.22,209.16,1.40270545]
[1759135898594,8.3608,209.2,209.19,4.01486524]
[1759135898895,4.06,209.2,209.16,4.01486524]
[1759135899090,121.18,209.2,209.16,7.32]
[1759135899289,117.12,209.2,209.16,7.32]
[1759135899600,4.06,209.19,209.16,7.32]
[1759135900599,8.3611,209.19,209.16,7.32]
[1759135901791,117.12,209.2,209.16,7.32]
[1759135902000,117.12,209.2,209.19,7.32]
[1759135902401,4.06,209.27,209.18,5.41914536]
[1759135902698,95.28,209.27,209.2,5.41914536]
[1759135903800,4.2996,209.26,209.2,5.41914536]
[1759135904694,4.2996,209.26,209.22,7.32]
[1759135904995,91.22,209.27,209.22,1.40270545]
[1759135905196,91.22,209.27,209.23,7.32]
[1759135905597,4.2992,209.28,209.23,7.32]
[1759135905798,8.3592,209.28,209.23,7.32]
[1759135906498,8.3592,209.28,209.22,5.41914536]
[1759135906691,8.3592,209.28,209.22,12.73914536]
[1759135910606,4.2995,209.27,209.23,7.32]
[1759135910998,4.06,209.26,209.23,7.32]
[1759135911198,8.3597,209.26,209.23,7.32]
[1759135911600,4.06,209.23,209.22,4.01643991]
[1759135911802,4.06,209.24,209.19,4.01643991]
[1759135912105,4.06,209.22,209.18,4.01643991]
[1759135912308,4.3009,209.2,209.17,11.33643991]
[1759135912605,8.3609,209.2,209.17,4.01643991]
[1759135912902,8.3609,209.2,209.16,11.33643991]
[1759135914805,8.3609,209.2,209.16,7.32]
[1759135915502,4.07,209.18,209.15,4.01643991]
[1759135915801,4.07,209.21,209.14,4.01643991]
[1759135916608,4.3014,209.18,209.14,4.01643991]
[1759135916806,4.3014,209.18,209.15,7.5]
[1759135918499,4.07,209.16,209.12,4.01643991]
[1759135918695,4.07,209.16,209.11,4.01643991]
[1759135918906,118.52270545,209.17,209.11,4.01643991]
[1759135919104,4.07,209.16,209.11,4.01643991]
[1759135919305,4.07,209.16,209.09,7.5]
[1759135919306,4.07,209.16,209.1,4.01643991]
[1759135919708,4.3022,209.14,209.1,11.51643991]
[1759135919902,4.3022,209.14,209.1,11.51315273]
[1759135920504,4.3024,209.12,209.09,4.01315273]
[1759135920700,4.07,209.13,209.08,4.01315273]
[1759135921004,121.21,209.12,209.06,181.11949837]
[1759135921201,121.21,209.12,209.05,4.01315273]
[1759135921901,121.21,209.12,209.06,4.01315273]
[1759135922109,121.21,209.12,209.05,4.01315273]
[1759135922408,125.5126,209.12,209.05,4.01315273]
[1759135922611,121.21,209.12,209.05,4.01315273]
[1759135923212,5.47270545,209.11,209.04,4.01315273]
[1759135923405,122.61270545,209.11,209.04,7.5]
[1759135923911,121.21,209.11,209.04,11.51315273]
[1759135924314,121.21,209.11,209.04,7.5]
[1759135924805,121.23,209.11,209.04,7.5]
[1759135925306,4.07,209.11,209.04,7.5]
[1759135925511,90.99,209.11,209.04,7.5]
[1759135926307,95.2928,209.11,209.04,7.5]
[1759135930310,4.3031,209.09,209.01,7.5]
[1759135930515,4.3031,209.09,209.03,1.40270545]
[1759135930716,4.3031,209.09,209.03,8.90270545]
[1759135931211,4.07,209.1,209.03,8.90270545]
[1759135932008,4.07,209.1,209.03,7.5]
[1759135932212,4.07,209.1,209.03,8.90270545]
[1759135932911,4.3032,209.09,209.03,8.90270545]
[1759135934018,4.3034,209.08,209.03,8.90270545]
[1759135934219,4.3034,209.08,209.03,1.40270545]
[1759135935410,8.3734,209.08,209.03,1.40270545]
[1759135935919,4.3034,209.08,209.03,1.40270545]
[1759135936220,4.3029,209.1,209.03,9.13270545]
[1759135936514,4.07,209.11,209.05,1.40270545]
[1759135936819,4.07,209.11,209.06,7.73]
[1759135937120,89.72,209.14,209.06,7.73]
[1759135937418,4.07,209.09,209.06,7.73]
[1759135937620,4.07,209.09,209.05,1.40270545]
[1759135937811,4.07,209.09,209.06,7.73]
[1759135938010,4.07,209.09,209.05,1.40270545]
[1759135938208,4.07,209.09,209.06,7.73]
[1759135938413,4.303,209.1,209.05,1.40270545]
[1759135938817,4.303,209.1,209.06,7.73]
[1759135939218,4.303,209.1,209.05,1.40270545]
[1759135939419,8.373,209.1,209.06,7.73]
[1759135940022,8.373,209.1,209.05,1.40270545]
[1759135940325,4.07,209.1,209.05,1.40270545]
[1759135940524,4.07,209.1,209.06,7.73]
[1759135940826,4.303,209.1,209.06,7.73]
[1759135941026,4.07,209.09,209.06,7.73]
[1759135942520,4.3025,209.12,209.06,7.73]
[1759135942722,4.07,209.13,209.06,7.73]
[1759135943520,8.3729,209.1,209.06,7.73]
[1759135944020,8.3729,209.1,209.05,1.40270545]
[1759135944222,8.3729,209.1,209.06,7.38]
[1759135944728,4.3031,209.09,209.03,7.38]
[1759135947424,4.3031,209.09,209.04,1.40270545]
[1759135947832,8.4031,209.09,209.05,7.38]
[1759135948830,8.4031,209.09,209.04,1.40270545]
[1759135949532,8.4031,209.09,209.05,7.38]
[1759135949725,8.4031,209.09,209.04,1.40270545]
[1759135950227,4.3033,209.08,209.05,7.38]
[1759135950427,93.22270545,209.12,209.02,8.78270545]
[1759135950631,121.26,209.11,209.02,8.78270545]
[1759135950930,4.1,209.1,209.02,8.78270545]
[1759135952029,8.4035,209.07,209.03,7.38]
[1759135952337,4.1,209.07,209.03,7.38]
[1759135952525,4.1,209.07,209.04,7.38]
[1759135953142,4.1,209.07,209.02,5.41585818]
[1759135953432,4.3033,209.08,209.04,1.40270545]
[1759135953634,4.3033,209.08,209.05,7.38]
[1759135954131,4.3033,209.08,209.04,5.41585818]
[1759135954437,4.3033,209.08,209.05,7.38]
[1759135954836,4.3033,209.08,209.04,5.41585818]
[1759135955026,4.3033,209.08,209.05,7.38]
[1759135955226,4.3033,209.08,209.05,4.01315273]
[1759135955431,4.3029,209.1,209.06,7.38]
[1759135955630,4.3029,209.1,209.08,7.38]
[1759135957236,4.3029,209.1,209.08,11.39315273]
[1759135958032,4.1,209.11,209.08,11.39315273]
[1759135959233,4.1,209.11,209.09,4.01315273]
[1759135962540,66.9154,209.16,209.07,5.32435401]
[1759135962541,4.1,209.15,209.1,4.01315273]
[1759135962746,4.3021,209.14,209.11,7.38]
[1759135962937,8.4021,209.14,209.11,7.38]
[1759135963139,4.1,209.14,209.11,11.39315273]
[1759135963340,4.1,209.14,209.12,7.38]
[1759135964446,4.3023,209.13,209.11,4.01315273]
[1759135964839,4.3023,209.13,209.09,7.38]
[1759135964840,4.1,209.12,209.1,4.01315273]
[1759135965742,8.4026,209.11,209.1,4.01315273]
[1759135965942,4.1,209.1,209.09,4.01315273]
[1759135966448,4.3026,209.11,209.09,4.01315273]
[1759135966636,4.3026,209.11,209.1,7.38]
[1759135966838,4.3026,209.11,209.1,11.39315273]
[1759135968250,4.3026,209.11,209.1,11.40144614]
[1759135968951,4.3026,209.11,209.1,7.38]
[1759135970952,4.3026,209.11,209.09,4.02144614]
[1759135971449,8.4026,209.11,209.09,4.02144614]
[1759135973452,117.1,209.12,209.09,4.02144614]
[1759135973649,4.3023,209.13,209.11,7.38]
[1759135974256,8.3723,209.13,209.11,7.38]
[1759135974558,4.3026,209.11,209.1,11.27144614]
[1759135974761,8.3726,209.11,209.09,4.02144614]
[1759135974956,4.07,209.11,209.08,11.27144614]
[1759135975356,4.303,209.09,209.08,11.27144614]
[1759135980770,4.303,209.09,209.08,7.25]
[1759135981669,4.303,209.09,209.08,11.27144614]
[1759135982474,4.303,209.09,209.08,7.25]
[1759135983671,4.303,209.09,209.08,11.26732384]
[1759135983873,4.303,209.09,209.08,4.01732384]
[1759135985777,4.303,209.09,209.08,11.26732384]
[1759135990086,8.373,209.09,209.07,4.01732384]
[1759135990386,4.3034,209.07,209.06,11.26732384]
[1759135992490,4.3034,209.07,209.06,7.25]
[1759135993874,4.3034,209.07,209.06,4.0199433]
[1759135994481,4.3034,209.07,209.06,11.3699433]
[1759135995389,4.3034,209.07,209.06,7.35]
[1759135997582,4.3034,209.07,209.06,12.67435401]
[1759135998178,4.3034,209.07,209.06,7.35]
[1759135998683,66.9221,209.14,209.06,7.35]
[1759135998684,4.3032,209.09,209.06,7.35]
[1759135998884,4.3032,209.09,209.08,7.35]
[1759135999091,117.04,209.13,209.08,7.35]
[1759135999288,188.0349,209.16,209.13,7.35]
[1759135999687,4.3018,209.15,209.13,7.35]
[1759136001184,4.3018,209.15,209.14,7.35]
[1759136003288,117.04,209.16,209.14,7.35]
[1759136003494,117.04,209.16,209.13,4.016222]
[1759136003696,117.04,209.16,209.14,7.35]
[1759136003995,117.04,209.16,209.14,7.74]
[1759136004298,117.04,209.16,209.13,4.016222]
[1759136004496,117.04,209.16,209.14,7.74]
[1759136005199,117.04,209.16,209.13,4.016222]